{"text_format":"1","workbook":"xlsx","n_sheets":7,"sheets":["Backend","Introduction","TT","Measure EM radiation","Data In","Data Out","Settings"],"not_rendered":{"charts":5,"images":7,"macros":1,"external_links":0,"defined_names":31,"comments":0,"pivot_tables":0},"unopened":[],"bounds":{"document_bytes":16777216,"sheet_cells":100000,"rows_first":2000,"rows_last":500,"rows_between":2000,"halvings":0,"cell_chars":16384,"cell_head_chars":4096},"cells_cut":0,"cells_raw":0,"read":"whole","date_system":"1900"}

{"sheet":"Backend","index":0,"n_rows":7,"n_cols":21,"rows_kept":7,"cut":false,"hidden":true,"merged":[]}
[]
[{"$f":"RIGHT(CELL(\"filename\",A2),LEN(CELL(\"filename\",A2))-FIND(\"]\",CELL(\"filename\",A2)))","v":"Backend"},"Sensor","Name","ValForZero","Zero","DataIn","DataInAvg","DI_Inst_UVAdj","DI_Avg_UVAdj","Instant","Running Avg","Light1","Light2","Light3","InvRAvg","InvLight1","InvLight2","InvLight3",null,"Cover1",{"$f":"COUNTA(BackendTable[[Light1]:[Light3]])+COUNTA(BackendTable[Zero])=0","v":false}]
[null,1,"Infrared",{"$f":"BackendTable[[#This Row],[DI_Avg_UVAdj]]","v":0},177.57333333333332,{"$f":"INDIRECT(\"Instant_S\"&BackendTable[[#This Row],[Sensor]],0)","v":0},{"$f":"IFERROR(AVERAGE(INDIRECT(\"DataIn_S\"&BackendTable[[#This Row],[Sensor]],0)),0)","v":0},{"$f":"IF(BackendTable[[#This Row],[Sensor]]=5,BackendTable[[#This Row],[DataIn]]-INDEX(BackendTable[DataIn],MATCH(4,BackendTable[Sensor],0)),BackendTable[[#This Row],[DataIn]])","v":0},{"$f":"IF(BackendTable[[#This Row],[Sensor]]=5,BackendTable[[#This Row],[DataInAvg]]-INDEX(BackendTable[DataInAvg],MATCH(4,BackendTable[Sensor],0)),BackendTable[[#This Row],[DataInAvg]])","v":0},{"$f":"MAX(BackendTable[[#This Row],[DI_Inst_UVAdj]]-BackendTable[[#This Row],[Zero]],0)/ValAdj","v":0},{"$f":"MAX(BackendTable[[#This Row],[DI_Avg_UVAdj]]-BackendTable[[#This Row],[Zero]],0)/ValAdj","v":0},null,null,null,{"$f":"10-BackendTable[[#This Row],[Running Avg]]","v":10},{"$f":"10-BackendTable[[#This Row],[Light1]]","v":10},{"$f":"10-BackendTable[[#This Row],[Light2]]","v":10},{"$f":"10-BackendTable[[#This Row],[Light3]]","v":10},null,"Cover2",{"$f":"COUNTA(BackendTable[[Light1]:[Light3]])=0","v":true}]
[null,2,"Red",{"$f":"BackendTable[[#This Row],[DI_Avg_UVAdj]]","v":0},180.94666666666666,{"$f":"INDIRECT(\"Instant_S\"&BackendTable[[#This Row],[Sensor]],0)","v":0},{"$f":"IFERROR(AVERAGE(INDIRECT(\"DataIn_S\"&BackendTable[[#This Row],[Sensor]],0)),0)","v":0},{"$f":"IF(BackendTable[[#This Row],[Sensor]]=5,BackendTable[[#This Row],[DataIn]]-INDEX(BackendTable[DataIn],MATCH(4,BackendTable[Sensor],0)),BackendTable[[#This Row],[DataIn]])","v":0},{"$f":"IF(BackendTable[[#This Row],[Sensor]]=5,BackendTable[[#This Row],[DataInAvg]]-INDEX(BackendTable[DataInAvg],MATCH(4,BackendTable[Sensor],0)),BackendTable[[#This Row],[DataInAvg]])","v":0},{"$f":"MAX(BackendTable[[#This Row],[DI_Inst_UVAdj]]-BackendTable[[#This Row],[Zero]],0)/ValAdj","v":0},{"$f":"MAX(BackendTable[[#This Row],[DI_Avg_UVAdj]]-BackendTable[[#This Row],[Zero]],0)/ValAdj","v":0},null,null,null,{"$f":"10-BackendTable[[#This Row],[Running Avg]]","v":10},{"$f":"10-BackendTable[[#This Row],[Light1]]","v":10},{"$f":"10-BackendTable[[#This Row],[Light2]]","v":10},{"$f":"10-BackendTable[[#This Row],[Light3]]","v":10},null,"Cover3",{"$f":"COUNTA(BackendTable[[Light2]:[Light3]])=0","v":true}]
[null,3,"Green",{"$f":"BackendTable[[#This Row],[DI_Avg_UVAdj]]","v":0},185.22666666666666,{"$f":"INDIRECT(\"Instant_S\"&BackendTable[[#This Row],[Sensor]],0)","v":0},{"$f":"IFERROR(AVERAGE(INDIRECT(\"DataIn_S\"&BackendTable[[#This Row],[Sensor]],0)),0)","v":0},{"$f":"IF(BackendTable[[#This Row],[Sensor]]=5,BackendTable[[#This Row],[DataIn]]-INDEX(BackendTable[DataIn],MATCH(4,BackendTable[Sensor],0)),BackendTable[[#This Row],[DataIn]])","v":0},{"$f":"IF(BackendTable[[#This Row],[Sensor]]=5,BackendTable[[#This Row],[DataInAvg]]-INDEX(BackendTable[DataInAvg],MATCH(4,BackendTable[Sensor],0)),BackendTable[[#This Row],[DataInAvg]])","v":0},{"$f":"MAX(BackendTable[[#This Row],[DI_Inst_UVAdj]]-BackendTable[[#This Row],[Zero]],0)/ValAdj","v":0},{"$f":"MAX(BackendTable[[#This Row],[DI_Avg_UVAdj]]-BackendTable[[#This Row],[Zero]],0)/ValAdj","v":0},null,null,null,{"$f":"10-BackendTable[[#This Row],[Running Avg]]","v":10},{"$f":"10-BackendTable[[#This Row],[Light1]]","v":10},{"$f":"10-BackendTable[[#This Row],[Light2]]","v":10},{"$f":"10-BackendTable[[#This Row],[Light3]]","v":10},null,"ValAdj",50]
[null,4,"Blue",{"$f":"BackendTable[[#This Row],[DI_Avg_UVAdj]]","v":0},194.42666666666668,{"$f":"INDIRECT(\"Instant_S\"&BackendTable[[#This Row],[Sensor]],0)","v":0},{"$f":"IFERROR(AVERAGE(INDIRECT(\"DataIn_S\"&BackendTable[[#This Row],[Sensor]],0)),0)","v":0},{"$f":"IF(BackendTable[[#This Row],[Sensor]]=5,BackendTable[[#This Row],[DataIn]]-INDEX(BackendTable[DataIn],MATCH(4,BackendTable[Sensor],0)),BackendTable[[#This Row],[DataIn]])","v":0},{"$f":"IF(BackendTable[[#This Row],[Sensor]]=5,BackendTable[[#This Row],[DataInAvg]]-INDEX(BackendTable[DataInAvg],MATCH(4,BackendTable[Sensor],0)),BackendTable[[#This Row],[DataInAvg]])","v":0},{"$f":"MAX(BackendTable[[#This Row],[DI_Inst_UVAdj]]-BackendTable[[#This Row],[Zero]],0)/ValAdj","v":0},{"$f":"MAX(BackendTable[[#This Row],[DI_Avg_UVAdj]]-BackendTable[[#This Row],[Zero]],0)/ValAdj","v":0},null,null,null,{"$f":"10-BackendTable[[#This Row],[Running Avg]]","v":10},{"$f":"10-BackendTable[[#This Row],[Light1]]","v":10},{"$f":"10-BackendTable[[#This Row],[Light2]]","v":10},{"$f":"10-BackendTable[[#This Row],[Light3]]","v":10}]
[null,5,"UV",{"$f":"BackendTable[[#This Row],[DI_Avg_UVAdj]]","v":0},4.0799999999999841,{"$f":"INDIRECT(\"Instant_S\"&BackendTable[[#This Row],[Sensor]],0)","v":0},{"$f":"IFERROR(AVERAGE(INDIRECT(\"DataIn_S\"&BackendTable[[#This Row],[Sensor]],0)),0)","v":0},{"$f":"IF(BackendTable[[#This Row],[Sensor]]=5,BackendTable[[#This Row],[DataIn]]-INDEX(BackendTable[DataIn],MATCH(4,BackendTable[Sensor],0)),BackendTable[[#This Row],[DataIn]])","v":0},{"$f":"IF(BackendTable[[#This Row],[Sensor]]=5,BackendTable[[#This Row],[DataInAvg]]-INDEX(BackendTable[DataInAvg],MATCH(4,BackendTable[Sensor],0)),BackendTable[[#This Row],[DataInAvg]])","v":0},{"$f":"MAX(BackendTable[[#This Row],[DI_Inst_UVAdj]]-BackendTable[[#This Row],[Zero]],0)/ValAdj","v":0},{"$f":"MAX(BackendTable[[#This Row],[DI_Avg_UVAdj]]-BackendTable[[#This Row],[Zero]],0)/ValAdj","v":0},null,null,null,{"$f":"10-BackendTable[[#This Row],[Running Avg]]","v":10},{"$f":"10-BackendTable[[#This Row],[Light1]]","v":10},{"$f":"10-BackendTable[[#This Row],[Light2]]","v":10},{"$f":"10-BackendTable[[#This Row],[Light3]]","v":10}]

{"sheet":"Introduction","index":1,"n_rows":32,"n_cols":13,"rows_kept":32,"cut":false,"hidden":false,"merged":[[3,11,3,14],[31,12,31,17],[13,2,13,11],[8,2,11,17],[17,2,23,11],[27,2,27,4],[26,8,28,17],[4,11,4,14]]}
["v. 210714"]
[{"$f":"RIGHT(CELL(\"filename\",A2),LEN(CELL(\"filename\",A2))-FIND(\"]\",CELL(\"filename\",A2)))","v":"Introduction"}]
[]
[null,null,null,null,null,null,null,null,null,null,null,{"$f":"TT!$O$17","v":"Select language "}]
[null,null,null,null,null,null,null,null,null,null,null,"English"]
[]
[]
[]
[null,null,{"$f":"TT!$O$24","v":"Exploring the electromagnetic spectrum"}]
[]
[]
[]
[]
[null,null,{"$f":"TT!$O$25","v":"In partnership with NASA"}]
[]
[]
[]
[null,null,{"$f":"TT!$O$26","v":"In this lesson, students investigate electromagnetic radiation. They focus on the visible, infrared (IR), and ultraviolet (UV) bands within the spectrum of electromagnetic radiation. The data visualizations in this workbook they can measure light wavelengths including infrared and UV light levels in their environment using a spectrometer."}]
[]
[]
[]
[]
[]
[]
[]
[]
[null,null,null,null,null,null,null,null,{"$f":"TT!$O$27","v":"NASA content is used with NASA's approval, and in accordance with the applicable NASA guidelines, solely for use in Microsoft educational materials. Any downloading, copying and/or reuse of such content is governed by NASA Media Usage Guidelines, NASA Advertising Guidelines, Merchandising Guidelines, and by applicable law."}]
[null,null,{"$f":"TT!$O$22","v":"Next "}]
[]
[]
[]
[null,null,null,null,null,null,null,null,null,null,null,"Source","https://www.nasa.gov/multimedia/imagegallery/iotd.html"]

{"sheet":"TT","index":2,"n_rows":43,"n_cols":20,"rows_kept":43,"cut":false,"hidden":true,"merged":[]}
[]
[null,"Row","Tab","Location","Language 1","Language 2","Language 3","Language 4","Language 5","Language 6","Language 7","Language 8","Language 9","Language 10","Display"]
[null,{"$f":"ROW()-ROW(TT[#Headers])","v":1},"Data In",{"$f":"TT[[#This Row],[Tab]]&TT[[#This Row],[Row]]","v":"Data In1"},"Data In (From Source)","Entrada de dados (Da Fonte)","Datos entrantes (desde la fuente)","Dateneingang (von der Quelle)","Données entrantes (de la source)",null,null,null,null,null,{"$f":"INDEX(TT[[#This Row],[Language 1]:[Language 10]],1,LanguageSelect)","v":"Data In (From Source)"},null,null,"Select Language",{"$f":"Introduction!$L$5","v":"English"},{"$f":"INDEX($R$5:$R$14,MATCH($S$3,$S$5:$S$14,0))","v":1}]
[null,{"$f":"ROW()-ROW(TT[#Headers])","v":2},"Data In",{"$f":"TT[[#This Row],[Tab]]&TT[[#This Row],[Row]]","v":"Data In2"},"Data coming from the current data source will appear below as it is received.","Os dados que vêm da fonte de dados atual aparecerão abaixo à medida que eles são recebidos.","Los datos procedentes de la fuente de datos actual aparecerán a continuación a medida que se reciben.","Daten aus der aktuellen Datenquelle werden unten angezeigt, sobald sie empfangen werden.","Les données provenant de la source de données actuelle apparaîtront ci-dessous dès leur réception.",null,null,null,null,null,{"$f":"INDEX(TT[[#This Row],[Language 1]:[Language 10]],1,LanguageSelect)","v":"Data coming from the current data source will appear below as it is received."}]
[null,{"$f":"ROW()-ROW(TT[#Headers])","v":3},"Data In",{"$f":"TT[[#This Row],[Tab]]&TT[[#This Row],[Row]]","v":"Data In3"},"Current Data","Dados Atuais","Datos actuales","Aktuelle Daten","Données actuelles",null,null,null,null,null,{"$f":"INDEX(TT[[#This Row],[Language 1]:[Language 10]],1,LanguageSelect)","v":"Current Data"},null,null,1,"English"]
[null,{"$f":"ROW()-ROW(TT[#Headers])","v":4},"Data In",{"$f":"TT[[#This Row],[Tab]]&TT[[#This Row],[Row]]","v":"Data In4"},"Time","Tempo","Tiempo","Zeit","Temps",null,null,null,null,null,{"$f":"INDEX(TT[[#This Row],[Language 1]:[Language 10]],1,LanguageSelect)","v":"Time"},null,null,2,"Português"]
[null,{"$f":"ROW()-ROW(TT[#Headers])","v":5},"Data In",{"$f":"TT[[#This Row],[Tab]]&TT[[#This Row],[Row]]","v":"Data In5"},"Historical Data","Dados de Histórico","Datos históricos","Historische Daten","Données historiques",null,null,null,null,null,{"$f":"INDEX(TT[[#This Row],[Language 1]:[Language 10]],1,LanguageSelect)","v":"Historical Data"},null,null,3,"Español"]
[null,{"$f":"ROW()-ROW(TT[#Headers])","v":6},"Data Out",{"$f":"TT[[#This Row],[Tab]]&TT[[#This Row],[Row]]","v":"Data Out6"},"Data Out (To Device)","Saída de Dados (Para o Dispositivo)","Salida de datos (hacia el dispositivo)","Datenausgang (zum Gerät)","Données sortantes (à partir du dispositif)",null,null,null,null,null,{"$f":"INDEX(TT[[#This Row],[Language 1]:[Language 10]],1,LanguageSelect)","v":"Data Out (To Device)"},null,null,4,"Deutsch"]
[null,{"$f":"ROW()-ROW(TT[#Headers])","v":7},"Data Out",{"$f":"TT[[#This Row],[Tab]]&TT[[#This Row],[Row]]","v":"Data Out7"},"Data entered into the channels below will be sent to the currently connected device as a comma-delimited string.","Os dados inseridos nos canais abaixo serão enviados para o dispositivo atualmente conectado como uma string delimitada por vírgula.","Los datos introducidos en los canales siguientes se enviarán al dispositivo actualmente conectado como una cadena delimitada por comas.","Die in die folgenden Kanäle eingegebenen Daten werden als kommagetrennte Zeichenkette an das aktuell angeschlossene Gerät gesendet.","Les données saisies dans les canaux ci-dessous seront envoyées au dispositif actuellement connecté sous forme de chaîne délimitée par des virgules.",null,null,null,null,null,{"$f":"INDEX(TT[[#This Row],[Language 1]:[Language 10]],1,LanguageSelect)","v":"Data entered into the channels below will be sent to the currently connected device as a comma-delimited string."},null,null,5,"Français"]
[null,{"$f":"ROW()-ROW(TT[#Headers])","v":8},"Settings",{"$f":"TT[[#This Row],[Tab]]&TT[[#This Row],[Row]]","v":"Settings8"},"Workbook Settings","Configurações da Pasta de Trabalho","Configuración del libro de trabajo","Arbeitsmappen-Einstellungen","Paramètres du classeur",null,null,null,null,null,{"$f":"INDEX(TT[[#This Row],[Language 1]:[Language 10]],1,LanguageSelect)","v":"Workbook Settings"},null,null,6]
[null,{"$f":"ROW()-ROW(TT[#Headers])","v":9},"Settings",{"$f":"TT[[#This Row],[Tab]]&TT[[#This Row],[Row]]","v":"Settings9"},"Settings below will affect how data is read into the current workbook from data sources. Clear a field's contents to revert to its default setting.","As configurações abaixo irão afetar como os dados são lidos na pasta de trabalho atual a partir das fontes de dados. Limpe o conteúdo de um campo para voltar à sua configuração padrão.","Los ajustes que se indican a continuación afectarán a la forma en que los datos se leen en el libro de trabajo actual a partir de fuentes de datos. Borra el contenido de un campo para volver a su configuración predeterminada.","Die folgenden Einstellungen beeinflussen, wie Daten aus Datenquellen in die aktuelle Arbeitsmappe eingelesen werden. Lösche den Inhalt eines Feldes, um zur Standardeinstellung zurückzukehren.","Les paramètres ci-dessous affectent la manière dont les données sont lues dans le classeur actuel à partir des sources de données. Effacer le contenu d'un champ pour revenir à ses paramètres par défaut.",null,null,null,null,null,{"$f":"INDEX(TT[[#This Row],[Language 1]:[Language 10]],1,LanguageSelect)","v":"Settings below will affect how data is read into the current workbook from data sources. Clear a field's contents to revert to its default setting."},null,null,7]
[null,{"$f":"ROW()-ROW(TT[#Headers])","v":10},"Settings",{"$f":"TT[[#This Row],[Tab]]&TT[[#This Row],[Row]]","v":"Settings10"},"Data interval (ms):","Intervalo de dados (ms):  ","Intervalo de datos (ms):  ","Datenintervall (ms):  ","Intervalle de données (ms):",null,null,null,null,null,{"$f":"INDEX(TT[[#This Row],[Language 1]:[Language 10]],1,LanguageSelect)","v":"Data interval (ms):"},null,null,8]
[null,{"$f":"ROW()-ROW(TT[#Headers])","v":11},"Settings",{"$f":"TT[[#This Row],[Tab]]&TT[[#This Row],[Row]]","v":"Settings11"},"Data rows:","Linhas de dados:  ","Líneas de datos:  ","Datenzeilen:","Lignes de données :",null,null,null,null,null,{"$f":"INDEX(TT[[#This Row],[Language 1]:[Language 10]],1,LanguageSelect)","v":"Data rows:"},null,null,9]
[null,{"$f":"ROW()-ROW(TT[#Headers])","v":12},"Settings",{"$f":"TT[[#This Row],[Tab]]&TT[[#This Row],[Row]]","v":"Settings12"},"Data channels:","Canais de dados:  ","Canales de datos:  ","Datenkanäle:  ","Canaux de données :",null,null,null,null,null,{"$f":"INDEX(TT[[#This Row],[Language 1]:[Language 10]],1,LanguageSelect)","v":"Data channels:"},null,null,10]
[null,{"$f":"ROW()-ROW(TT[#Headers])","v":13},"Settings",{"$f":"TT[[#This Row],[Tab]]&TT[[#This Row],[Row]]","v":"Settings13"},"Data orientation:","Orientação de dados:  ","Orientación de datos:  ","Datenorientierung:  ","Orientation des données:",null,null,null,null,null,{"$f":"INDEX(TT[[#This Row],[Language 1]:[Language 10]],1,LanguageSelect)","v":"Data orientation:"}]
[null,{"$f":"ROW()-ROW(TT[#Headers])","v":14},"Settings",{"$f":"TT[[#This Row],[Tab]]&TT[[#This Row],[Row]]","v":"Settings14"},"WARNING: Changing settings may result in the loss of content and/or custom formatting in the Data In and Data Out worksheets. Always save before changing values.","AVISO: A alteração das configurações pode resultar na perda de conteúdo e/ou formatação personalizada nas planilhas Entrada de Dados e Saída de Dados. Sempre salve antes de alterar os valores.","ADVERTENCIA: Cambiar la configuración puede resultar en la pérdida de contenido y/o formato personalizado en las hojas de trabajo de entrada y salida de datos. Guarda siempre antes de cambiar los valores.","WARNUNG: Das Ändern von Einstellungen kann zum Verlust von Inhalten und/oder zur benutzerdefinierten Formatierung in den Arbeitsblättern Dateneingang und Datenausgang führen. Speichere immer, bevor du Werte änderst.","AVERTISSEMENT : toute modification des paramètres peut entraîner une perte de contenu et / ou un formatage personnalisé dans les feuilles de calcul des Données entrantes et Données sortantes. Toujours sauvegarder avant de changer les valeurs.",null,null,null,null,null,{"$f":"INDEX(TT[[#This Row],[Language 1]:[Language 10]],1,LanguageSelect)","v":"WARNING: Changing settings may result in the loss of content and/or custom formatting in the Data In and Data Out worksheets. Always save before changing values."}]
[null,{"$f":"ROW()-ROW(TT[#Headers])","v":15},"Instructions",{"$f":"TT[[#This Row],[Tab]]&TT[[#This Row],[Row]]","v":"Instructions15"},"Select language ","Selecionar idioma ","Selecciona el idioma ","Sprache auswählen ","Choisir la langue ",null,null,null,null,null,{"$f":"INDEX(TT[[#This Row],[Language 1]:[Language 10]],1,LanguageSelect)","v":"Select language "}]
[null,{"$f":"ROW()-ROW(TT[#Headers])","v":16},"Instructions",{"$f":"TT[[#This Row],[Tab]]&TT[[#This Row],[Row]]","v":"Instructions16"},"This workbook uses \"Macros\" (automated Excel commands) to assist in the data collection process.","Esta pasta de trabalho usa \"Macros\" (comandos automatizados do Excel) para auxiliar no processo de coleta de dados","Este libro de trabajo utiliza \"Macros\" (comandos automatizados de Excel) para ayudar en el proceso de recopilación de datos.","Diese Arbeitsmappe verwendet \"Makros\" (automatisierte Excel-Befehle), um den Datenerfassungsprozess zu unterstützen.","Ce classeur utilise des « Macros » (commandes Excel automatisées) pour faciliter le processus de collecte de données.",null,null,null,null,null,{"$f":"INDEX(TT[[#This Row],[Language 1]:[Language 10]],1,LanguageSelect)","v":"This workbook uses \"Macros\" (automated Excel commands) to assist in the data collection process."}]
[null,{"$f":"ROW()-ROW(TT[#Headers])","v":17},"Instructions",{"$f":"TT[[#This Row],[Tab]]&TT[[#This Row],[Row]]","v":"Instructions17"},"To use these Macros and have buttons on the spreadsheets work, you must \"Enable\" the Macros.","Para usar essas Macros e ter botões nas planilhas funcionando, você deve \"Habilitar\" as Macros","Para utilizar estas macros y tener botones en las hojas de cálculo, debes \"Habilitar\" las macros.","Um diese Makros zu verwenden und Schaltflächen auf den Tabellenkalkulationen zu haben, musst du die Makros \"aktivieren\".","Pour utiliser ces Macros et utiliser des boutons sur les feuilles de calcul, vous devez « activer » les Macros.",null,null,null,null,null,{"$f":"INDEX(TT[[#This Row],[Language 1]:[Language 10]],1,LanguageSelect)","v":"To use these Macros and have buttons on the spreadsheets work, you must \"Enable\" the Macros."}]
[null,{"$f":"ROW()-ROW(TT[#Headers])","v":18},"Instructions",{"$f":"TT[[#This Row],[Tab]]&TT[[#This Row],[Row]]","v":"Instructions18"},"Click the \"Enable Content\" button that appears above when you first open this workbook.","Clique no botão \"Habilitar Conteúdo\" exibido acima quando você abrir a pasta de trabalho pela primeira vez","Haz clic en el botón \"Habilitar contenido\" que aparece arriba cuando abras por primera vez este libro de trabajo.","Klicke auf die Schaltfläche \"Inhalt aktivieren\", die oben erscheint, wenn du diese Arbeitsmappe zum ersten Mal öffnest.","Cliquez sur le bouton « Activer le contenu » qui apparaît ci-dessus lorsque vous ouvrez ce classeur pour la première fois.",null,null,null,null,null,{"$f":"INDEX(TT[[#This Row],[Language 1]:[Language 10]],1,LanguageSelect)","v":"Click the \"Enable Content\" button that appears above when you first open this workbook."}]
[null,{"$f":"ROW()-ROW(TT[#Headers])","v":19},"Instructions",{"$f":"TT[[#This Row],[Tab]]&TT[[#This Row],[Row]]","v":"Instructions19"},"Once you have enabled macros, you can use the workbook.  If you do not see this message, macros are enabled.","Depois de habilitar as macros, você poderá usar a pasta de trabalho.  Se você não vir essa mensagem, as macros serão habilitadas","Una vez que hayas activado las macros, podrás utilizar el libro de trabajo.  Si no ves este mensaje, las macros están habilitadas","Sobald du Makros aktiviert hast, kannst du die Arbeitsmappe verwenden.  Wenn du diese Meldung nicht siehst, sind die Makros aktiviert.","Une fois que vous avez activé les Macros, vous pouvez utiliser le classeur. Si vous ne voyez pas ce message, les Macros sont activées.",null,null,null,null,null,{"$f":"INDEX(TT[[#This Row],[Language 1]:[Language 10]],1,LanguageSelect)","v":"Once you have enabled macros, you can use the workbook.  If you do not see this message, macros are enabled."}]
[null,{"$f":"ROW()-ROW(TT[#Headers])","v":20},"Nav",{"$f":"TT[[#This Row],[Tab]]&TT[[#This Row],[Row]]","v":"Nav20"},"Next ","Próximo ","Siguiente ","Weiter ","Suivant ",null,null,null,null,null,{"$f":"INDEX(TT[[#This Row],[Language 1]:[Language 10]],1,LanguageSelect)","v":"Next "}]
[null,{"$f":"ROW()-ROW(TT[#Headers])","v":21},"Nav",{"$f":"TT[[#This Row],[Tab]]&TT[[#This Row],[Row]]","v":"Nav21"}," Previous"," Anterior"," Anterior"," Vorherige"," Précédent",null,null,null,null,null,{"$f":"INDEX(TT[[#This Row],[Language 1]:[Language 10]],1,LanguageSelect)","v":" Previous"}]
[null,{"$f":"ROW()-ROW(TT[#Headers])","v":22},"Introduction",{"$f":"TT[[#This Row],[Tab]]&TT[[#This Row],[Row]]","v":"Introduction22"},"Exploring the electromagnetic spectrum","Explorando o espectro eletromagnético","Explorando el espectro electromagnético","Erforschung des elektromagnetischen Spektrums","Explorer le spectre électromagnétique",null,null,null,null,null,{"$f":"INDEX(TT[[#This Row],[Language 1]:[Language 10]],1,LanguageSelect)","v":"Exploring the electromagnetic spectrum"}]
[null,{"$f":"ROW()-ROW(TT[#Headers])","v":23},"Introduction",{"$f":"TT[[#This Row],[Tab]]&TT[[#This Row],[Row]]","v":"Introduction23"},"In partnership with NASA","Em parceria com a NASA","En colaboración con la NASA","In Zusammenarbeit mit der NASA","En partenariat avec la NASA",null,null,null,null,null,{"$f":"INDEX(TT[[#This Row],[Language 1]:[Language 10]],1,LanguageSelect)","v":"In partnership with NASA"}]
[null,{"$f":"ROW()-ROW(TT[#Headers])","v":24},"Introduction",{"$f":"TT[[#This Row],[Tab]]&TT[[#This Row],[Row]]","v":"Introduction24"},"In this lesson, students investigate electromagnetic radiation. They focus on the visible, infrared (IR), and ultraviolet (UV) bands within the spectrum of electromagnetic radiation. The data visualizations in this workbook they can measure light wavelengths including infrared and UV light levels in their environment using a spectrometer.","Nesta lição, os alunos investigam a radiação eletromagnética. Eles se concentram nas bandas visível, infravermelha (IR) e ultravioleta (UV) dentro do espectro da radiação eletromagnética. As visualizações de dados nesta pasta de trabalho podem medir os comprimentos de onda da luz, incluindo os níveis de luz infravermelha e UV no ambiente, usando um espectrômetro.","En esta lección, los estudiantes investigan la radiación electromagnética. Se centran en las bandas visible, infrarroja (IR) y ultravioleta (UV) dentro del espectro de radiación electromagnética. Las visualizaciones de datos en este libro de trabajo pueden medir longitudes de onda de luz, incluyendo niveles de luz infrarroja y UV en su entorno utilizando un espectrómetro.","In dieser Lektion untersuchen die Schüler die elektromagnetische Strahlung. Sie konzentrieren sich auf die sichtbaren, infraroten (IR) und ultravioletten (UV) Bänder im Spektrum der elektromagnetischen Strahlung. Mit den Datenvisualisierungen in diesem Workbook können sie Lichtwellenlängen einschließlich Infrarot- und UV-Licht Niveaus in ihrer Umgebung mit einem Spektrometer messen.","Dans cette leçon, les élèves étudient le rayonnement électromagnétique. Ils se concentrent sur les bandes visible, infrarouge (IR) et ultraviolette (UV) du spectre de rayonnement électromagnétique. Les données de ce manuel permettent de mesurer les longueurs d'onde de la lumière dans leur environnement, y compris les niveaux de lumière infrarouge et UV, à l'aide d'un spectromètre.",null,null,null,null,null,{"$f":"INDEX(TT[[#This Row],[Language 1]:[Language 10]],1,LanguageSelect)","v":"In this lesson, students investigate electromagnetic radiation. They focus on the visible, infrared (IR), and ultraviolet (UV) bands within the spectrum of electromagnetic radiation. The data visualizations in this workbook they can measure light wavelengths including infrared and UV light levels in their environment using a spectrometer."}]
[null,{"$f":"ROW()-ROW(TT[#Headers])","v":25},"Introduction",{"$f":"TT[[#This Row],[Tab]]&TT[[#This Row],[Row]]","v":"Introduction25"},"NASA content is used with NASA's approval, and in accordance with the applicable NASA guidelines, solely for use in Microsoft educational materials. Any downloading, copying and/or reuse of such content is governed by NASA Media Usage Guidelines, NASA Advertising Guidelines, Merchandising Guidelines, and by applicable law.","O conteúdo da NASA pode ser usado apenas com a aprovação da NASA e de acordo com as diretrizes aplicáveis da NASA, exclusivamente para uso em materiais educacionais da Microsoft. Qualquer download, cópia e/ou reutilização do conteúdo é regido pelas Diretrizes de Utilização de Mídia da NASA, Diretrizes de Publicidade da NASA, Diretrizes de Merchandising e pelas leis aplicáveis.","El contenido de la NASA se utiliza con la aprobación de la NASA, y de acuerdo con las pautas aplicables de la NASA, exclusivamente para su uso en materiales educativos de Microsoft. Cualquier descarga, copia y/o reutilización de dicho contenido se rige por las Pautas de Uso de los Medios de la NASA, las Pautas de Publicidad de la NASA, las Pautas de Comercialización y la ley aplicable.","NASA-Inhalte werden mit Zustimmung der NASA und in Übereinstimmung mit den geltenden NASA-Richtlinien ausschließlich für die Verwendung in Microsoft-Schulungsunterlagen verwendet. Jegliches Herunterladen, Kopieren und/oder Wiederverwenden solcher Inhalte unterliegt den NASA Media Usage Guidelines, NASA Advertising Guidelines, Merchandising Guidelines und dem geltenden Recht.","Le contenu de la NASA est utilisé avec l'approbation de la NASA et conformément aux directives applicables de la NASA et est uniquement destiné à être utilisé dans le matériel pédagogique de Microsoft. Tout téléchargement, copie et / ou réutilisation de ce contenu est régi par les directives d’utilisation des média de la NASA, les directives de publicité de la NASA, les directives en matière de commercialisation et les lois applicables.",null,null,null,null,null,{"$f":"INDEX(TT[[#This Row],[Language 1]:[Language 10]],1,LanguageSelect)","v":"NASA content is used with NASA's approval, and in accordance with the applicable NASA guidelines, solely for use in Microsoft educational materials. Any downloading, copying and/or reuse of such content is governed by NASA Media Usage Guidelines, NASA Advertising Guidelines, Merchandising Guidelines, and by applicable law."}]
[null,{"$f":"ROW()-ROW(TT[#Headers])","v":26},"Introduction",{"$f":"TT[[#This Row],[Tab]]&TT[[#This Row],[Row]]","v":"Introduction26"},"Source","Fonte","Fuente","Quelle","Source",null,null,null,null,null,{"$f":"INDEX(TT[[#This Row],[Language 1]:[Language 10]],1,LanguageSelect)","v":"Source"}]
[null,{"$f":"ROW()-ROW(TT[#Headers])","v":27},"Measure EM radiation",{"$f":"TT[[#This Row],[Tab]]&TT[[#This Row],[Row]]","v":"Measure EM radiation27"},"Live data","Dados ao vivo","Datos en tiempo real","Live-Daten","Données en temps réel",null,null,null,null,null,{"$f":"INDEX(TT[[#This Row],[Language 1]:[Language 10]],1,LanguageSelect)","v":"Live data"}]
[null,{"$f":"ROW()-ROW(TT[#Headers])","v":28},"Measure EM radiation",{"$f":"TT[[#This Row],[Tab]]&TT[[#This Row],[Row]]","v":"Measure EM radiation28"},"Calibrate ","CALIBRAR ","CALIBRAR ","KALIBRIEREN ","CALIBRER ",null,null,null,null,null,{"$f":"INDEX(TT[[#This Row],[Language 1]:[Language 10]],1,LanguageSelect)","v":"Calibrate "}]
[null,{"$f":"ROW()-ROW(TT[#Headers])","v":29},"Measure EM radiation",{"$f":"TT[[#This Row],[Tab]]&TT[[#This Row],[Row]]","v":"Measure EM radiation29"},"Save trial ","Salvar teste ","Guardar prueba ","Messung speichern ","Enregistrer l’essai ",null,null,null,null,null,{"$f":"INDEX(TT[[#This Row],[Language 1]:[Language 10]],1,LanguageSelect)","v":"Save trial "}]
[null,{"$f":"ROW()-ROW(TT[#Headers])","v":30},"Measure EM radiation",{"$f":"TT[[#This Row],[Tab]]&TT[[#This Row],[Row]]","v":"Measure EM radiation30"},"Clear data ","Limpar dados ","Borrar datos ","Daten löschen ","Effacer les données ",null,null,null,null,null,{"$f":"INDEX(TT[[#This Row],[Language 1]:[Language 10]],1,LanguageSelect)","v":"Clear data "}]
[null,{"$f":"ROW()-ROW(TT[#Headers])","v":31},"Measure EM radiation",{"$f":"TT[[#This Row],[Tab]]&TT[[#This Row],[Row]]","v":"Measure EM radiation31"},"Relative Light Intensity","Intensidade Relativa da Luz","Intensidad de luz relativa","Relative Lichtintensität","Intensité lumineuse relative",null,null,null,null,null,{"$f":"INDEX(TT[[#This Row],[Language 1]:[Language 10]],1,LanguageSelect)","v":"Relative Light Intensity"}]
[null,{"$f":"ROW()-ROW(TT[#Headers])","v":32},"Measure EM radiation",{"$f":"TT[[#This Row],[Tab]]&TT[[#This Row],[Row]]","v":"Measure EM radiation32"},"Light 1 name","Nome da luz 1","Nombre Luz 1","Name Licht 1","Nom de la lumière 1",null,null,null,null,null,{"$f":"INDEX(TT[[#This Row],[Language 1]:[Language 10]],1,LanguageSelect)","v":"Light 1 name"}]
[null,{"$f":"ROW()-ROW(TT[#Headers])","v":33},"Measure EM radiation",{"$f":"TT[[#This Row],[Tab]]&TT[[#This Row],[Row]]","v":"Measure EM radiation33"},"Light 2 name","Nome da luz 2","Nombre Luz 2","Name Licht 2","Nom de la lumière 2",null,null,null,null,null,{"$f":"INDEX(TT[[#This Row],[Language 1]:[Language 10]],1,LanguageSelect)","v":"Light 2 name"}]
[null,{"$f":"ROW()-ROW(TT[#Headers])","v":34},"Measure EM radiation",{"$f":"TT[[#This Row],[Tab]]&TT[[#This Row],[Row]]","v":"Measure EM radiation34"},"Light 3 name","Nome da luz 3","Nombre Luz 3","Name Licht 3","Nom de la lumière 3",null,null,null,null,null,{"$f":"INDEX(TT[[#This Row],[Language 1]:[Language 10]],1,LanguageSelect)","v":"Light 3 name"}]
[null,{"$f":"ROW()-ROW(TT[#Headers])","v":35},"Measure EM radiation",{"$f":"TT[[#This Row],[Tab]]&TT[[#This Row],[Row]]","v":"Measure EM radiation35"},"Wavelength","Comprimento de onda","Longitud de onda","Wellenlänge","Longueur d'onde",null,null,null,null,null,{"$f":"INDEX(TT[[#This Row],[Language 1]:[Language 10]],1,LanguageSelect)","v":"Wavelength"}]
[null,{"$f":"ROW()-ROW(TT[#Headers])","v":36},"Measure EM radiation",{"$f":"TT[[#This Row],[Tab]]&TT[[#This Row],[Row]]","v":"Measure EM radiation36"},"IR","IV","IR","IR","IR",null,null,null,null,null,{"$f":"INDEX(TT[[#This Row],[Language 1]:[Language 10]],1,LanguageSelect)","v":"IR"}]
[null,{"$f":"ROW()-ROW(TT[#Headers])","v":37},"Measure EM radiation",{"$f":"TT[[#This Row],[Tab]]&TT[[#This Row],[Row]]","v":"Measure EM radiation37"},"Visible light","Luz visível","Luz visible","Sichtbares Licht","Lumière visible",null,null,null,null,null,{"$f":"INDEX(TT[[#This Row],[Language 1]:[Language 10]],1,LanguageSelect)","v":"Visible light"}]
[null,{"$f":"ROW()-ROW(TT[#Headers])","v":38},"Measure EM radiation",{"$f":"TT[[#This Row],[Tab]]&TT[[#This Row],[Row]]","v":"Measure EM radiation38"},"UV","UV","UV","UV","UV",null,null,null,null,null,{"$f":"INDEX(TT[[#This Row],[Language 1]:[Language 10]],1,LanguageSelect)","v":"UV"}]
[null,{"$f":"ROW()-ROW(TT[#Headers])","v":39},"Measure EM radiation",{"$f":"TT[[#This Row],[Tab]]&TT[[#This Row],[Row]]","v":"Measure EM radiation39"},"Compare radiation","Comparar radiação","Comparar radiación","Vergleich der Strahlung","Comparer le rayonnement",null,null,null,null,null,{"$f":"INDEX(TT[[#This Row],[Language 1]:[Language 10]],1,LanguageSelect)","v":"Compare radiation"}]
[null,{"$f":"ROW()-ROW(TT[#Headers])","v":40},null,{"$f":"TT[[#This Row],[Tab]]&TT[[#This Row],[Row]]","v":"40"},"Current reading","Dados atuais","Datos actuales","Aktuelle daten","Données actuelles",null,null,null,null,null,{"$f":"INDEX(TT[[#This Row],[Language 1]:[Language 10]],1,LanguageSelect)","v":"Current reading"}]
[null,{"$f":"ROW()-ROW(TT[#Headers])","v":41},null,{"$f":"TT[[#This Row],[Tab]]&TT[[#This Row],[Row]]","v":"41"},"Workbook Setup","Carteira da Pasta de Trabalho","Inicio del libro de trabajo","Arbeitsmappe starten","Début de de Classeur",null,null,null,null,null,{"$f":"INDEX(TT[[#This Row],[Language 1]:[Language 10]],1,LanguageSelect)","v":"Workbook Setup"}]

{"sheet":"Measure EM radiation","index":3,"n_rows":28,"n_cols":86,"rows_kept":28,"cut":false,"hidden":false,"merged":[[5,15,5,21],[5,37,5,44],[5,27,5,34],[5,49,5,56],[5,59,5,66],[5,71,5,78],[5,81,5,88],[13,3,13,4],[14,3,14,4],[15,3,15,4],[16,3,16,4],[6,48,6,49],[7,48,7,49],[8,48,8,49],[9,48,9,49],[10,48,10,49],[11,48,11,49],[12,48,12,49],[13,48,13,49],[14,48,14,49],[13,26,13,27],[14,26,14,27],[15,26,15,27],[16,26,16,27],[15,48,15,49],[16,48,16,49],[16,9,17,16],[16,32,17,39],[1,24,1,89],[24,9,24,16],[24,17,24,21],[6,25,16,25],[1,1,1,22],[22,18,22,19],[6,2,16,2],[22,6,22,7],[22,9,22,10],[22,12,22,13],[3,26,3,33],[3,35,3,41],[3,48,3,55],[3,57,3,63],[22,51,22,52],[24,4,24,8],[6,3,6,4],[7,3,7,4],[8,3,8,4],[9,3,9,4],[3,70,3,77],[3,79,3,85],[24,76,24,83],[24,84,24,88],[22,85,22,86],[6,69,16,69],[13,70,13,71],[14,70,14,71],[15,70,15,71],[16,70,16,71],[24,71,24,75],[8,70,8,71],[9,70,9,71],[10,70,10,71],[11,70,11,71],[12,70,12,71],[16,72,17,75],[16,84,17,87],[27,1,27,9],[16,5,17,8],[16,17,17,20],[16,28,17,31],[16,40,17,43],[6,70,6,71],[7,70,7,71],[5,3,5,9],[22,15,22,16],[6,47,16,47],[22,38,22,39],[22,41,22,42],[6,26,6,27],[7,26,7,27],[8,26,8,27],[9,26,9,27],[10,26,10,27],[11,26,11,27],[12,26,12,27],[16,50,17,53],[10,3,10,4],[11,3,11,4],[12,3,12,4],[16,62,17,65],[16,54,17,61],[16,76,17,83],[24,32,24,39],[24,40,24,44],[22,29,22,30],[22,32,22,33],[22,35,22,36],[22,73,22,74],[22,76,22,77],[22,79,22,80],[24,27,24,31],[24,49,24,53],[22,54,22,55],[22,57,22,58],[22,60,22,61],[22,63,22,64],[24,54,24,61],[24,62,24,66],[22,82,22,83]]}
[]
[{"$f":"RIGHT(CELL(\"filename\",A2),LEN(CELL(\"filename\",A2))-FIND(\"]\",CELL(\"filename\",A2)))","v":"Measure EM radiation"},{"$f":"TT!$O$29","v":"Live data"},null,null,null,null,null,null,null,null,null,null,null,null,null,null,null,null,null,null,null,null,null,null,{"$f":"TT!$O$41","v":"Compare radiation"}]
[]
[null,null,null,null,null,null,null,null,null,null,null,null,null,null,null,null,null,null,null,null,null,null,null,null,null,null,{"$f":"TT!$O$34&\" |\"","v":"Light 1 name |"},null,null,null,null,null,null,null,null,null,null,null,null,null,null,null,null,null,null,null,null,null,{"$f":"TT!$O$35&\" |\"","v":"Light 2 name |"},null,null,null,null,null,null,null,null,null,null,null,null,null,null,null,null,null,null,null,null,null,{"$f":"TT!$O$36&\" |\"","v":"Light 3 name |"}]
[]
[null,null,null,{"$f":"TT!$O$30","v":"Calibrate "},null,null,null,null,null,null,null,null,null,null,null,{"$f":"TT!O42","v":"Current reading"},null,null,null,null,null,null,null,null,null,null,null,{"$f":"TT!$O$31","v":"Save trial "},null,null,null,null,null,null,null,null,null,{"$f":"TT!$O$32","v":"Clear data "},null,null,null,null,null,null,null,null,null,null,null,{"$f":"TT!$O$31","v":"Save trial "},null,null,null,null,null,null,null,null,null,{"$f":"TT!$O$32","v":"Clear data "},null,null,null,null,null,null,null,null,null,null,null,{"$f":"TT!$O$31","v":"Save trial "},null,null,null,null,null,null,null,null,null,{"$f":"TT!$O$32","v":"Clear data "}]
[null,null,{"$f":"TT!$O$33","v":"Relative Light Intensity"},10,null,null,null,null,null,null,null,null,null,null,null,null,null,null,null,null,null,null,null,null,null,{"$f":"TT!$O$33","v":"Relative Light Intensity"},10,null,null,null,null,null,null,null,null,null,null,null,null,null,null,null,null,null,null,null,null,{"$f":"TT!$O$33","v":"Relative Light Intensity"},10,null,null,null,null,null,null,null,null,null,null,null,null,null,null,null,null,null,null,null,null,{"$f":"TT!$O$33","v":"Relative Light Intensity"},10]
[null,null,null,9,null,null,null,null,null,null,null,null,null,null,null,null,null,null,null,null,null,null,null,null,null,null,9,null,null,null,null,null,null,null,null,null,null,null,null,null,null,null,null,null,null,null,null,null,9,null,null,null,null,null,null,null,null,null,null,null,null,null,null,null,null,null,null,null,null,null,9]
[null,null,null,8,null,null,null,null,null,null,null,null,null,null,null,null,null,null,null,null,null,null,null,null,null,null,8,null,null,null,null,null,null,null,null,null,null,null,null,null,null,null,null,null,null,null,null,null,8,null,null,null,null,null,null,null,null,null,null,null,null,null,null,null,null,null,null,null,null,null,8]
[null,null,null,7,null,null,null,null,null,null,null,null,null,null,null,null,null,null,null,null,null,null,null,null,null,null,7,null,null,null,null,null,null,null,null,null,null,null,null,null,null,null,null,null,null,null,null,null,7,null,null,null,null,null,null,null,null,null,null,null,null,null,null,null,null,null,null,null,null,null,7]
[null,null,null,6,null,null,null,null,null,null,null,null,null,null,null,null,null,null,null,null,null,null,null,null,null,null,6,null,null,null,null,null,null,null,null,null,null,null,null,null,null,null,null,null,null,null,null,null,6,null,null,null,null,null,null,null,null,null,null,null,null,null,null,null,null,null,null,null,null,null,6]
[null,null,null,5,null,null,null,null,null,null,null,null,null,null,null,null,null,null,null,null,null,null,null,null,null,null,5,null,null,null,null,null,null,null,null,null,null,null,null,null,null,null,null,null,null,null,null,null,5,null,null,null,null,null,null,null,null,null,null,null,null,null,null,null,null,null,null,null,null,null,5]
[null,null,null,4,null,null,null,null,null,null,null,null,null,null,null,null,null,null,null,null,null,null,null,null,null,null,4,null,null,null,null,null,null,null,null,null,null,null,null,null,null,null,null,null,null,null,null,null,4,null,null,null,null,null,null,null,null,null,null,null,null,null,null,null,null,null,null,null,null,null,4]
[null,null,null,3,null,null,null,null,null,null,null,null,null,null,null,null,null,null,null,null,null,null,null,null,null,null,3,null,null,null,null,null,null,null,null,null,null,null,null,null,null,null,null,null,null,null,null,null,3,null,null,null,null,null,null,null,null,null,null,null,null,null,null,null,null,null,null,null,null,null,3]
[null,null,null,2,null,null,null,null,null,null,null,null,null,null,null,null,null,null,null,null,null,null,null,null,null,null,2,null,null,null,null,null,null,null,null,null,null,null,null,null,null,null,null,null,null,null,null,null,2,null,null,null,null,null,null,null,null,null,null,null,null,null,null,null,null,null,null,null,null,null,2]
[null,null,null,1,null,null,null,null,null,null,null,null,null,null,null,null,null,null,null,null,null,null,null,null,null,null,1,null,null,null,null,null,null,null,null,null,null,null,null,null,null,null,null,null,null,null,null,null,1,null,null,null,null,null,null,null,null,null,null,null,null,null,null,null,null,null,null,null,null,null,1]
[null,null,null,0,null,"2000 nm",null,null,null,{"$f":"TT!$O$37","v":"Wavelength"},null,null,null,null,null,null,null,"200 nm",null,null,null,null,null,null,null,null,0,null,"2000 nm",null,null,null,{"$f":"TT!$O$37","v":"Wavelength"},null,null,null,null,null,null,null,"200 nm",null,null,null,null,null,null,null,0,null,"2000 nm",null,null,null,{"$f":"TT!$O$37","v":"Wavelength"},null,null,null,null,null,null,null,"200 nm",null,null,null,null,null,null,null,0,null,"2000 nm",null,null,null,{"$f":"TT!$O$37","v":"Wavelength"},null,null,null,null,null,null,null,"200 nm"]
[]
[]
[]
[]
[]
[null,null,null,null,null,null,{"$f":"Backend!$K$3","v":0},null,null,{"$f":"Backend!$K$4","v":0},null,null,{"$f":"Backend!$K$5","v":0},null,null,{"$f":"Backend!$K$6","v":0},null,null,{"$f":"Backend!$K$7","v":0},null,null,null,null,null,null,null,null,null,null,{"$f":"Backend!$L$3","v":0},null,null,{"$f":"Backend!$L$4","v":0},null,null,{"$f":"Backend!$L$5","v":0},null,null,{"$f":"Backend!$L$6","v":0},null,null,{"$f":"Backend!$L$7","v":0},null,null,null,null,null,null,null,null,null,{"$f":"Backend!$M$3","v":0},null,null,{"$f":"Backend!$M$4","v":0},null,null,{"$f":"Backend!$M$5","v":0},null,null,{"$f":"Backend!$M$6","v":0},null,null,{"$f":"Backend!$M$7","v":0},null,null,null,null,null,null,null,null,null,{"$f":"Backend!$N$3","v":0},null,null,{"$f":"Backend!$N$4","v":0},null,null,{"$f":"Backend!$N$5","v":0},null,null,{"$f":"Backend!$N$6","v":0},null,null,{"$f":"Backend!$N$7","v":0}]
[]
[null,null,null,null,{"$f":"TT!$O$38","v":"IR"},null,null,null,null,{"$f":"TT!$O$39","v":"Visible light"},null,null,null,null,null,null,null,{"$f":"TT!$O$40","v":"UV"},null,null,null,null,null,null,null,null,null,{"$f":"TT!$O$38","v":"IR"},null,null,null,null,{"$f":"TT!$O$39","v":"Visible light"},null,null,null,null,null,null,null,{"$f":"TT!$O$40","v":"UV"},null,null,null,null,null,null,null,null,{"$f":"TT!$O$38","v":"IR"},null,null,null,null,{"$f":"TT!$O$39","v":"Visible light"},null,null,null,null,null,null,null,{"$f":"TT!$O$40","v":"UV"},null,null,null,null,null,null,null,null,{"$f":"TT!$O$38","v":"IR"},null,null,null,null,{"$f":"TT!$O$39","v":"Visible light"},null,null,null,null,null,null,null,{"$f":"TT!$O$40","v":"UV"}]
[]
[]
[null,{"$f":"TT!$O$23","v":" Previous"}]

{"sheet":"Data In","index":4,"n_rows":7,"n_cols":11,"rows_kept":7,"cut":false,"hidden":false,"merged":[[0,0,0,9],[1,0,1,9],[2,0,2,6],[5,0,5,6]]}
[{"$f":"TT!$O$3","v":"Data In (From Source)"},null,null,null,null,null,null,null,null,null,"update"]
[{"$f":"TT!$O$4","v":"Data coming from the current data source will appear below as it is received."}]
[{"$f":"TT!$O$5","v":"Current Data"}]
[{"$f":"TT!$O$6","v":"Time"},"CH1","CH2","CH3","CH4","CH5","CH6"]
[]
[{"$f":"TT!$O$7","v":"Historical Data"}]
[{"$f":"IF(A4=\"\",\"\",A4)","v":"Time"},"CH1","CH2","CH3","CH4","CH5","CH6",{"$f":"IF(H4=\"\",\"\",H4)","v":""}]

{"sheet":"Data Out","index":5,"n_rows":4,"n_cols":11,"rows_kept":4,"cut":false,"hidden":false,"merged":[[0,0,0,9],[1,0,1,9]]}
[{"$f":"TT!$O$8","v":"Data Out (To Device)"},null,null,null,null,null,null,null,null,null,"update"]
[{"$f":"TT!$O$9","v":"Data entered into the channels below will be sent to the currently connected device as a comma-delimited string."}]
[]
["CH1","CH2","CH3","CH4","CH5","CH6"]

{"sheet":"Settings","index":6,"n_rows":12,"n_cols":8,"rows_kept":12,"cut":false,"hidden":false,"merged":[[0,0,0,6],[1,0,1,6],[11,0,11,6]]}
[{"$f":"TT!$O$10","v":"Workbook Settings"},null,null,null,null,null,null,"update"]
[{"$f":"TT!$O$11","v":"Settings below will affect how data is read into the current workbook from data sources. Clear a field's contents to revert to its default setting."}]
[]
[{"$f":"TT!$O$12","v":"Data interval (ms):"},"150"]
[]
[{"$f":"TT!$O$13","v":"Data rows:"},"15",150]
[]
[{"$f":"TT!$O$14","v":"Data channels:"},"10",6]
[]
[{"$f":"TT!$O$15","v":"Data orientation:"},"Newest last"]
[]
[{"$f":"TT!$O$16","v":"WARNING: Changing settings may result in the loss of content and/or custom formatting in the Data In and Data Out worksheets. Always save before changing values."}]